bitfinex/quotes_ETHUSD_20251015
["timestamp","ask_amount","ask_price","bid_price","bid_amount"]
[1760498755949,0.001,4104.8,4104.5,2.43629418]
[1760498756150,2.513,4104.7,4104.4,2.4364097]
[1760498756339,2.513,4104.7,4104.4,2.6845097]
[1760498756540,2.513,4104.7,4104.6,2.55789099]
[1760498756981,2.513,4104.7,4104.6,0.1216]
[1760498757767,2.513,4104.7,4104.6,2.55789099]
[1760498758065,2.513,4104.7,4104.6,0.1216]
[1760498760456,0.001,4104.8,4104.6,0.1216]
[1760498760659,2.512,4104.7,4104.6,0.1216]
[1760498760861,0.001,4104.8,4104.7,2.43623163]
[1760498761044,2.513,4104.8,4104.7,2.68433163]
[1760498761375,2.513,4104.8,4104.7,2.43623163]
[1760498761789,2.513,4104.8,4104.6,0.1216]
[1760498763095,2.513,4104.8,4104.6,2.55787457]
[1760498764192,2.513,4104.8,4104.7,2.43623163]
[1760498765392,4.709,4104.8,4104.7,2.43623163]
[1760498765541,4.709,4104.8,4104.6,0.1216]
[1760498765743,4.709,4104.8,4104.6,2.55786521]
[1760498765966,4.709,4104.8,4104.7,2.43623163]
[1760498766777,4.709,4104.8,4104.6,2.55787629]
[1760498768178,4.709,4104.8,4104.7,2.43623163]
[1760498770396,3.611,4104.8,4104.7,2.43623163]
[1760498770995,0.001,4104.8,4104.7,2.68433163]
[1760498771205,2.513,4104.8,4104.7,2.80593163]
[1760498771562,0.001,4104.8,4104.7,2.80593163]
[1760498771870,0.185,4104.8,4104.7,2.55783163]
[1760498772069,0.185,4104.8,4104.7,2.83029394]
[1760498772409,0.001,4105.0,4104.9,2.43611293]
[1760498773075,0.001,4105.0,4104.9,2.68421293]
[1760498773697,0.923,4105.0,4104.9,2.68421293]
[1760498773874,0.923,4105.0,4104.9,2.43611293]
[1760498775201,0.923,4105.0,4104.7,0.1216]
[1760498775202,1.3967,4105.0,4104.7,0.1216]
[1760498775494,0.6964,4104.9,4104.7,2.55782173]
[1760498775664,0.6964,4104.9,4104.8,2.43617228]
[1760498775864,0.6964,4104.9,4104.7,2.55781726]
[1760498777274,0.2227,4104.9,4104.7,2.55781726]
[1760498777492,0.2227,4104.9,4104.8,2.43617228]
[1760498777682,0.2227,4104.9,4104.7,2.55783145]
[1760498778000,0.6964,4104.9,4104.7,2.55783145]
[1760498779502,0.2227,4104.9,4104.8,2.43617228]
[1760498779703,0.923,4105.0,4104.8,2.43617228]
[1760498780721,0.923,4105.0,4104.7,2.55782061]
[1760498781033,1.3967,4105.0,4104.7,2.55782061]
[1760498781373,0.923,4105.0,4104.7,0.1216]
[1760498781700,0.923,4105.0,4104.7,2.55781628]
[1760498782094,1.3967,4105.0,4104.8,2.43616428]
[1760498782998,0.001,4105.0,4104.9,2.43611293]
[1760498783212,3.1446,4105.0,4104.9,2.43611293]
[1760498783583,0.001,4105.0,4104.9,2.43611293]
[1760498783775,0.902,4105.0,4104.9,2.80581293]
[1760498784111,0.001,4105.0,4104.9,2.80581293]
[1760498784278,1.856,4105.0,4104.9,2.80581293]
[1760498785291,4.052,4105.0,4104.9,2.55771293]
[1760498785498,2.954,4105.0,4104.9,2.55771293]
[1760498785703,2.3297,4105.0,4104.9,2.55771293]
[1760498786224,2.3297,4105.0,4104.9,0.1216]
[1760498786375,2.9633,4105.0,4104.9,0.1216]
[1760498787613,1.856,4105.0,4104.9,2.55771293]
[1760498792713,0.001,4105.0,4104.9,2.55771293]
[1760498793010,2.511,4105.0,4104.9,2.58207405]
[1760498793215,2.511,4105.0,4104.9,2.55771293]
[1760498793589,2.511,4105.0,4104.9,2.80581293]
[1760498794293,0.001,4105.3,4105.2,2.43593491]
[1760498794812,0.001,4105.3,4105.2,2.82999425]
[1760498795014,0.001,4105.3,4105.2,2.80563491]
[1760498795408,2.784,4105.3,4105.2,2.80563491]
[1760498796910,0.001,4105.4,4105.3,2.43587557]
[1760498797093,1.099,4105.4,4105.3,2.70833432]
[1760498797298,1.099,4105.4,4105.3,2.43587557]
[1760498797493,0.001,4105.5,4105.4,2.43581624]
[1760498797693,0.001,4105.5,4105.4,4.60391624]
[1760498798218,0.001,4106.5,4105.5,1.92]
[1760498798426,0.001,4106.5,4105.8,0.1216]
[1760498798985,0.001,4106.5,4105.8,4.35557893]
[1760498799639,0.813,4105.9,4105.8,4.35557893]
[1760498799836,0.813,4105.9,4105.8,4.37993471]
[1760498800034,0.813,4105.9,4105.8,4.60367893]
[1760498800243,0.813,4105.9,4105.8,2.43557893]
[1760498800545,1.4886,4105.9,4105.8,2.43557893]
[1760498800717,1.0352,4105.9,4105.8,2.43557893]
[1760498800911,0.813,4105.9,4105.8,2.43557893]
[1760498804209,1.4886,4105.9,4104.9,2.43611293]
[1760498804408,0.4534,4105.8,4105.7,2.43559165]
[1760498804640,1.0352,4105.9,4105.8,2.43557893]
[1760498804844,2.509,4105.9,4105.8,2.43557893]
[1760498805211,3.606,4105.9,4105.8,2.45993471]
[1760498805407,4.703,4105.9,4105.8,2.43557893]
[1760498806738,2.509,4105.9,4105.8,2.43557893]
[1760498808049,2.509,4105.9,4105.0,2.43605359]
[1760498808050,2.509,4105.9,4104.9,0.2481]
[1760498808261,2.9624,4105.9,4105.8,2.43557893]
[1760498808658,2.509,4105.9,4105.8,2.43557893]
[1760498809026,2.509,4105.9,4105.8,2.55717893]
[1760498810863,3.1846,4105.9,4105.8,2.55717893]
[1760498811563,2.509,4105.9,4105.8,2.55717893]
[1760498813230,2.509,4105.9,4105.8,2.43557893]
[1760498813428,2.509,4105.9,4105.8,2.68367893]
[1760498813630,0.001,4105.9,4105.8,4.35557893]
[1760498813826,2.508,4105.9,4105.8,4.60367893]
[1760498815268,3.605,4105.9,4105.8,4.60367893]
[1760498815979,3.605,4105.9,4105.8,2.43557893]
[1760498816160,4.2582,4105.9,4105.8,2.43557893]
[1760498817373,4.2582,4105.9,4105.0,2.43605359]
[1760498817571,4.2582,4105.9,4104.7,1.92]
[1760498817772,4.2582,4105.9,4104.9,2.43611293]
[1760498818072,3.605,4105.9,4104.9,4.60421293]
[1760498818314,3.605,4105.9,4105.0,4.35605359]
[1760498818580,1.098,4105.9,4105.8,2.43557893]
[1760498818746,3.605,4105.9,4105.8,2.43557893]
[1760498820275,4.0394,4105.9,4105.8,2.43557893]
[1760498820446,4.2582,4105.9,4105.8,2.43557893]
[1760498820774,0.001,4105.9,4105.8,2.43557893]
[1760498820973,2.508,4105.9,4105.8,2.43557893]
[1760498821273,0.001,4106.0,4105.9,2.43551961]
[1760498822479,0.774,4106.0,4105.9,2.43551961]
[1760498822680,1.2084,4106.0,4105.9,2.43551961]
[1760498823253,1.2084,4106.0,4105.9,2.55711961]
[1760498825385,3.4024,4106.0,4105.9,2.55711961]
[1760498825580,1.2084,4106.0,4105.9,0.1216]
[1760498825808,4.2774603,4106.0,4105.9,0.1216]
[1760498826080,0.6336,4105.9,4105.6,2.43568603]
[1760498826280,0.6336,4105.9,4105.7,2.43563825]
[1760498826281,0.4344,4105.8,4105.7,2.43563825]
[1760498826470,3.1592,4105.8,4105.7,2.43563825]
[1760498826781,2.7248,4105.8,4105.7,2.55723825]
[1760498826982,2.506,4105.8,4105.7,2.55723825]
[1760498827282,2.9404,4105.8,4105.7,2.55723825]
[1760498828080,2.506,4105.8,4105.7,2.55723825]
[1760498828379,2.9404,4105.8,4105.7,2.55723825]
[1760498831699,2.9404,4105.8,4105.7,0.1216]
[1760498832206,3.59846384,4105.8,4105.7,0.1216]
[1760498833002,3.574,4105.8,4105.7,0.1216]
[1760498833364,3.574,4105.8,4105.7,2.55723825]
[1760498833365,2.9404,4105.8,4105.7,2.55723825]
[1760498833560,2.9589,4105.8,4105.7,2.55723825]
[1760498834597,3.5925,4105.8,4105.7,0.1216]
[1760498834776,2.9589,4105.8,4105.7,0.1216]
[1760498835296,5.7865,4105.8,4105.7,0.1216]
[1760498835502,4.6895,4105.8,4105.7,0.1216]
[1760498835898,4.71396384,4105.8,4105.7,0.1216]
[1760498836069,4.6895,4105.8,4105.7,0.1216]
[1760498836270,4.6895,4105.8,4105.7,2.55723825]
[1760498836688,4.6895,4105.8,4105.7,0.1216]
[1760498839318,4.6895,4105.8,4105.7,2.55723825]
[1760498839481,3.5925,4105.8,4105.7,2.55723825]
[1760498839897,0.6336,4105.7,4105.0,0.002]
[1760498840097,0.02446384,4105.6,4105.1,2.43598935]
[1760498840293,0.02446384,4105.6,4105.3,2.43587146]
[1760498840294,2.505,4105.5,4105.3,2.43587146]
[1760498840498,0.47736384,4105.4,4105.3,2.43587146]
[1760498840889,1.11096384,4105.4,4105.2,2.43592924]
[1760498841092,0.4529,4105.3,4105.2,2.43592924]
[1760498841494,0.4529,4105.3,4105.1,2.43597943]
[1760498841804,2.98236384,4105.2,4105.1,2.43597943]
[1760498843989,2.98236384,4105.2,4105.0,2.43804623]
[1760498844227,0.4529,4105.1,4105.0,2.43804623]
[1760498844801,0.4529,4105.1,4105.0,0.002]
[1760498844802,1.0865,4105.1,4105.0,0.002]
[1760498845216,2.1835,4105.1,4105.0,0.002]
[1760498845519,3.2805,4105.1,4105.0,0.002]
[1760498846306,3.2805,4105.1,4105.0,2.43805359]
[1760498847749,2.505,4105.2,4105.1,2.43599425]
[1760498848032,0.2198,4105.9,4105.5,2.43570586]
[1760498848236,3.1376,4105.8,4105.6,2.43569418]
[1760498848401,3.1376,4105.8,4105.7,2.43563825]
[1760498848603,2.504,4105.8,4105.7,2.43563825]
[1760498849333,0.001,4105.9,4105.8,2.43557893]
[1760498849497,0.001,4105.9,4105.8,2.68367893]
[1760498849702,0.723,4105.9,4105.8,2.68367893]
[1760498850021,0.937,4105.9,4104.8,0.002]
[1760498850220,0.937,4105.9,4105.7,2.43562347]
[1760498850624,0.4529,4105.8,4105.6,2.43569064]
[1760498850928,0.4529,4105.7,4105.5,2.4357439]
[1760498851236,2.504,4105.6,4105.5,2.4357439]
[1760498852597,0.6336,4105.5,4104.8,0.002]
[1760498852799,0.65806384,4105.4,4104.8,0.002]
[1760498853004,0.6336,4105.2,4104.8,2.43815676]
[1760498853303,3.16206384,4105.1,4104.8,0.002]
[1760498853505,3.61496384,4105.1,4104.8,0.002]
[1760498854430,3.61496384,4105.1,4104.8,2.4381536]
[1760498855209,4.71196384,4105.1,4104.8,2.4381536]
[1760498855409,5.80896384,4105.1,4104.8,2.4381536]
[1760498855612,3.5905,4105.1,4104.8,0.002]
[1760498855936,3.61496384,4105.1,4104.8,0.002]
[1760498857744,3.5905,4105.1,4104.8,0.002]
[1760498858348,3.61496384,4105.1,4104.8,0.002]
[1760498859140,3.5905,4105.1,4104.8,0.002]
[1760498859340,7.94649425,4105.1,4104.8,0.002]
[1760498860051,21.57169716,4105.1,4104.8,0.002]
[1760498860925,7.94549425,4105.1,4104.8,0.002]
[1760498865361,10.14149425,4105.1,4104.8,0.002]
[1760498866222,6.85899425,4105.1,4104.8,0.002]
[1760498866424,2.503,4105.1,4104.8,0.002]
[1760498866646,2.9524,4105.1,4104.8,0.002]
[1760498866845,7.42999425,4105.1,4104.8,0.002]
[1760498867156,6.14359425,4105.1,4104.8,0.002]
[1760498867457,10.42498605,4105.1,4104.8,0.002]
[1760498869160,12.22338605,4105.1,4104.8,0.002]
[1760498869822,7.94199425,4105.1,4104.8,0.002]
[1760498871645,7.49259425,4105.1,4104.8,0.002]
[1760498871848,7.94199425,4105.1,4104.8,0.002]
[1760498873358,8.32401724,4105.1,4104.8,0.002]
[1760498874453,7.94199425,4105.1,4104.8,0.002]
[1760498875169,7.49259425,4105.1,4104.8,0.002]
[1760498875368,8.9803918,4105.1,4104.8,0.002]
[1760498875574,5.9704,4105.1,4104.8,0.002]
[1760498875779,10.2517918,4105.1,4104.8,0.002]
[1760498875965,9.1537918,4105.1,4104.8,0.002]
[1760498876169,3.1366,4105.1,4104.8,0.002]
[1760498876376,0.38202773,4105.6,4105.0,0.2501]
[1760498876676,2.52646384,4105.5,4105.0,0.002]
[1760498876836,6.7833918,4105.4,4105.0,0.002]
[1760498877042,0.65806384,4105.3,4105.0,0.002]
[1760498877247,3.1356,4105.2,4105.1,0.2481]
[1760498877671,3.1356,4105.2,4105.0,0.002]
[1760498877869,0.02446384,4105.1,4105.0,2.68615359]
[1760498878459,0.02446384,4105.1,4105.0,0.002]
[1760498878972,0.02446384,4105.1,4105.0,0.2501]
[1760498879142,0.02446384,4105.1,4105.0,0.1236]
[1760498880175,0.02446384,4105.1,4105.0,0.3717]
[1760498880380,0.02446384,4105.1,4105.0,0.1236]
[1760498881342,3.54475809,4105.1,4105.0,0.002]
[1760498881565,3.09405809,4105.1,4105.0,0.002]
[1760498881767,0.65806384,4105.1,4105.0,0.002]
[1760498882537,2.57806384,4105.1,4105.0,0.002]
[1760498882739,5.46475809,4105.1,4105.0,0.002]
[1760498882938,5.44029425,4105.1,4105.0,0.002]
[1760498883462,10.5787197,4105.1,4105.0,0.002]
[1760498883973,5.44029425,4105.1,4105.0,0.002]
[1760498884153,10.5787197,4105.1,4105.0,0.002]
[1760498885174,2.93562343,4105.1,4105.0,0.002]
[1760498885480,1.04008727,4105.1,4105.0,0.002]
[1760498885651,3.54108727,4105.1,4105.0,0.002]
[1760498886272,3.15906384,4105.1,4105.0,0.002]
[1760498889276,2.501,4105.1,4105.0,0.2501]
[1760498889479,2.501,4105.1,4105.0,2.68615359]
[1760498890882,2.501,4105.1,4105.0,2.43805359]
[1760498891185,2.501,4105.1,4105.0,2.68615359]
[1760498891355,2.5,4105.1,4105.0,0.2501]
[1760498891555,2.5,4105.1,4105.0,2.68615359]
[1760498892587,0.65806384,4105.5,4105.0,2.43805359]
[1760498892792,0.6336,4105.3,4105.0,2.80775359]
[1760498892960,3.1336,4105.2,4105.1,2.68409425]
[1760498893288,2.5,4105.2,4105.1,2.68409425]
[1760498893483,2.5,4105.2,4105.1,2.80569425]
[1760498895286,4.696,4105.2,4105.1,2.80569425]
[1760498896977,4.696,4105.2,4105.1,2.55759425]
[1760498897398,4.696,4105.2,4105.1,2.80569425]
[1760498897964,4.696,4105.2,4105.1,2.55759425]
[1760498899163,4.696,4105.2,4105.1,2.80569425]
[1760498899894,2.5,4105.2,4105.1,2.80569425]
[1760498900070,2.5,4105.2,4105.1,2.68409425]
[1760498902075,2.5,4105.2,4105.1,4.60409425]
[1760498902273,0.001,4105.9,4105.8,2.43557893]
[1760498903491,2.5,4105.9,4105.8,2.43557893]
[1760498905397,4.694,4105.9,4105.8,2.43557893]
[1760498906708,4.2775,4105.9,4105.0,0.002]
[1760498906874,0.47776384,4105.8,4105.0,0.002]
[1760498907071,0.47776384,4105.8,4105.3,2.43582658]
[1760498907276,0.4533,4105.7,4105.4,2.43577192]
[1760498907470,0.4533,4105.7,4105.2,2.43593131]
[1760498907471,0.47776384,4105.6,4105.2,2.43593131]
[1760498907708,2.498,4105.5,4105.2,2.43593131]
[1760498908096,2.9513,4105.5,4105.2,2.43593131]
[1760498908286,2.9513,4105.5,4105.4,2.43581624]
[1760498908809,2.498,4105.5,4105.4,2.43581624]
[1760498910111,2.498,4105.5,4105.4,2.55741624]
[1760498911583,0.001,4105.9,4105.8,2.43557893]
[1760498911811,2.498,4105.9,4105.8,2.55717893]
[1760498912679,2.498,4105.9,4105.8,2.80527893]
[1760498913100,0.001,4105.9,4105.8,9.61560438]
[1760498913292,0.453,4105.9,4105.8,9.86370438]
[1760498913799,0.453,4105.9,4105.8,4.47717893]
[1760498915314,2.647,4105.9,4105.8,4.47717893]
[1760498916300,1.55,4105.9,4105.8,4.47717893]
[1760498919090,0.453,4105.9,4105.8,4.47717893]
[1760498919990,1.1549,4105.9,4105.1,0.002]
[1760498920199,0.02446384,4105.8,4105.1,0.002]
[1760498920418,0.4665,4105.7,4105.5,2.43574455]
[1760498920622,0.02446384,4105.8,4105.7,2.43563825]
[1760498921323,0.49096384,4105.8,4105.7,2.43563825]
[1760498922915,0.6336,4105.7,4105.1,0.002]
[1760498923221,0.02446384,4105.6,4105.1,0.002]
[1760498923448,0.49096384,4105.6,4105.1,0.002]
[1760498923628,0.6336,4105.5,4105.1,0.002]
[1760498923801,0.02446384,4105.4,4105.1,0.002]
[1760498924006,2.496,4105.3,4105.1,0.002]
[1760498924226,0.02446384,4105.2,4105.1,0.002]
[1760498924625,1.12456384,4105.2,4105.1,0.002]
[1760498925229,2.22156384,4105.2,4105.1,0.002]
[1760498925420,3.31856384,4105.2,4105.1,0.002]
[1760498925821,3.2941,4105.2,4105.1,0.002]
[1760498927620,2.1971,4105.2,4105.1,0.002]
[1760498931053,0.65806384,4105.2,4105.1,0.002]
[1760498931206,0.65806384,4105.2,4105.1,0.1236]
[1760498931411,2.495,4105.2,4105.1,2.55959425]
[1760498932246,3.1286,4105.2,4105.1,2.55959425]
[1760498932459,3.5688,4105.2,4105.1,0.1236]
[1760498933040,3.5688,4105.2,4105.1,0.002]
[1760498934051,3.1286,4105.2,4105.1,0.002]
[1760498934631,3.5688,4105.2,4105.1,0.002]
[1760498934843,3.59326384,4105.2,4105.1,0.002]
[1760498935219,5.78926384,4105.2,4105.1,0.002]
[1760498935522,5.7648,4105.2,4105.1,0.002]
[1760498936732,4.6668,4105.2,4105.1,0.002]
[1760498937246,4.69126384,4105.2,4105.1,0.002]
[1760498937837,3.59326384,4105.2,4105.1,0.002]
[1760498938049,3.5688,4105.2,4105.1,0.002]
[1760498939767,3.1286,4105.2,4105.1,0.002]
[1760498940131,3.5688,4105.2,4105.1,0.002]
[1760498944669,3.59326384,4105.2,4105.1,0.002]
[1760498945382,5.78926384,4105.2,4105.1,0.002]
[1760498945540,5.3246,4105.2,4105.1,0.002]
[1760498945742,3.1276,4105.2,4105.1,2.55959425]
[1760498946982,3.1276,4105.2,4105.1,0.002]
[1760498946983,3.5678,4105.2,4105.1,0.002]
[1760498947940,6.00373491,4105.2,4105.1,0.002]
[1760498950183,2.01770383,4105.7,4105.1,0.002]
[1760498950390,0.6336,4105.5,4105.1,0.002]
[1760498950553,2.494,4105.4,4105.1,0.002]
[1760498950750,0.02446384,4105.3,4105.1,0.002]
[1760498950980,2.494,4105.2,4105.1,2.43799425]
[1760498951181,3.1276,4105.2,4105.1,2.43799425]
[1760498951597,2.494,4105.2,4105.1,2.43799425]
[1760498951889,3.1276,4105.2,4105.1,2.43799425]
[1760498952387,0.6336,4105.7,4105.4,2.43578646]
[1760498952553,0.6336,4105.5,4105.4,2.43578646]
[1760498952753,0.6336,4105.5,4105.4,2.55738646]
[1760498952956,0.6336,4105.8,4105.5,2.43574617]
[1760498953193,0.6336,4105.6,4105.5,2.43574617]
[1760498954291,0.6336,4105.6,4105.4,2.55740617]
[1760498954488,3.15106384,4105.5,4105.4,0.1216]
[1760498955283,5.3226,4105.5,4105.4,2.55741624]
[1760498955957,2.8296,4105.5,4105.4,2.55741624]
[1760498956156,5.3226,4105.5,4105.4,0.1216]
[1760498956688,3.591,4105.5,4105.4,2.55741624]
[1760498956871,2.493,4105.5,4105.4,2.55741624]
[1760498959369,3.1266,4105.5,4105.4,2.55741624]
[1760498959574,3.1266,4105.5,4105.4,0.1216]
[1760498959773,3.5958,4105.5,4105.4,0.1216]
[1760498960176,3.5958,4105.5,4105.4,2.55741624]
[1760498960486,3.1266,4105.5,4105.4,2.55741624]
[1760498965389,1.098,4105.5,4105.4,2.80551624]
[1760498965596,0.001,4105.9,4105.8,2.43557893]
[1760498965796,1.116,4105.9,4105.8,2.43557893]
[1760498966301,1.116,4105.9,4105.8,2.70803471]
[1760498966476,1.116,4105.9,4105.8,2.68367893]
[1760498969580,0.001,4105.9,4105.8,2.68367893]
[1760498969780,2.492,4105.9,4105.8,2.68367893]
[1760498970892,2.492,4105.9,4105.8,2.43557893]
[1760498971780,2.492,4105.9,4105.8,2.68367893]
[1760498974814,0.001,4106.4,4105.8,4.60367893]
[1760498974994,0.001,4106.4,4106.3,6.86726918]
[1760498975397,2.195,4106.4,4106.3,2.58688237]
[1760498975600,2.195,4106.4,4106.3,6.71566918]
[1760498975799,1.098,4106.4,4106.3,6.83726918]
[1760498976316,2.491,4106.4,4106.3,2.55688237]
[1760498985426,4.685,4106.4,4106.3,2.55688237]
[1760498985615,4.685,4106.4,4106.3,6.83726918]
[1760498987232,2.9371,4106.4,4106.3,2.55688237]
[1760498988946,2.491,4106.4,4106.3,6.83726918]
[1760498989529,2.9371,4106.4,4106.3,2.55688237]
[1760498990617,2.9371,4106.4,4105.9,6.71590642]
[1760498990816,2.491,4106.4,4106.3,2.43528237]
[1760498991042,2.491,4106.4,4106.0,2.4354603]
[1760498991219,2.491,4106.4,4106.1,2.43535308]
[1760498991405,0.47056384,4106.3,4106.2,2.43534167]
[1760498991612,0.4461,4106.3,4106.2,2.43534167]
[1760498994129,0.4461,4106.3,4105.6,4.43398681]
[1760498994429,0.4536,4106.3,4106.2,2.43529554]
[1760498995200,1.5506,4106.3,4106.2,2.43529554]
[1760498995401,2.6476,4106.3,4106.2,2.43529554]
[1760498995916,2.194,4106.3,4106.2,2.43529554]
[1760498996234,1.5506,4106.3,4106.2,2.43529554]
[1760498997503,0.47806384,4106.3,4105.6,0.002]
[1760498997733,0.02446384,4106.2,4105.6,0.002]
[1760498997937,2.9416,4106.1,4106.0,2.4354603]
[1760498998733,2.9416,4106.1,4105.7,2.43559411]
[1760498998734,0.6336,4106.0,4105.7,2.43559411]
[1760498999033,0.2313,4105.8,4105.7,2.43563825]
[1760498999214,2.7193,4105.8,4105.7,2.43563825]
[1760498999422,3.1729,4105.8,4105.7,2.43563825]
[1760498999919,0.001,4106.4,4105.8,2.43554837]
[1760499000119,0.6336,4106.2,4105.9,2.43547152]
[1760499000337,0.6336,4106.0,4105.9,2.43547152]
[1760499000545,3.5752,4106.0,4105.9,2.43547152]
[1760499000831,3.5752,4106.0,4105.9,0.1216]
[1760499003848,3.5752,4106.0,4105.6,0.002]
[1760499004030,0.8649,4105.7,4105.6,0.002]
[1760499004335,3.3519,4105.7,4105.6,0.002]
[1760499004549,6.24113825,4105.7,4105.6,0.002]
[1760499005302,8.43513825,4105.7,4105.6,0.002]
[1760499006343,9.25813825,4105.7,4105.6,0.002]
[1760499006543,8.16113825,4105.7,4105.6,0.002]
[1760499006903,8.51730618,4105.7,4105.6,0.002]
[1760499007240,5.67413825,4105.7,4105.6,0.002]
[1760499007401,6.10749595,4105.7,4105.6,0.002]
[1760499007607,8.5431342,4105.7,4105.6,0.002]
[1760499008220,13.67933689,4105.7,4105.6,0.002]
[1760499009747,14.03550482,4105.7,4105.6,0.002]
[1760499009910,13.67933689,4105.7,4105.6,0.002]
[1760499010723,13.29734094,4105.7,4105.6,0.002]
[1760499011230,5.67413825,4105.7,4105.6,0.002]
[1760499011430,0.6849,4105.7,4105.6,0.002]
[1760499011662,5.13720269,4106.4,4105.6,2.43764101]
[1760499011663,0.001,4106.4,4105.6,2.43764101]
[1760499011817,2.487,4106.3,4105.6,2.4376971]
[1760499012254,2.487,4106.3,4105.7,2.43559261]
[1760499012557,2.487,4106.3,4105.6,0.002]
[1760499012558,0.2214,4105.8,4105.6,0.002]
[1760499012717,5.06506384,4105.7,4105.6,0.002]
[1760499012916,7.93273825,4105.7,4105.6,0.002]
[1760499013334,5.44573825,4105.7,4105.6,0.002]
[1760499013539,7.93273825,4105.7,4105.6,0.002]
[1760499015338,10.12873825,4105.7,4105.6,0.002]
[1760499016148,9.03073825,4105.7,4105.6,0.002]
[1760499016324,7.93273825,4105.7,4105.6,0.002]
[1760499017732,5.44573825,4105.7,4105.6,0.002]
[1760499018266,7.93273825,4105.7,4105.6,0.002]
[1760499018950,8.28890618,4105.7,4105.6,0.002]
[1760499019661,8.28890618,4105.7,4104.9,0.002]
[1760499019662,3.06965359,4105.0,4104.9,0.002]
[1760499019836,7.50111743,4105.0,4104.9,0.002]
[1760499020044,7.93315359,4105.0,4104.9,0.002]
[1760499020241,8.31522071,4105.0,4104.9,0.002]
[1760499020443,8.41294841,4105.0,4104.9,0.002]
[1760499020964,7.95644841,4105.0,4104.9,0.002]
[1760499021265,8.03088129,4105.0,4104.9,0.002]
[1760499024333,8.41294948,4105.0,4104.9,0.002]
[1760499024561,5.92594948,4105.0,4104.9,0.002]
[1760499024765,7.95644948,4105.0,4104.9,0.002]
[1760499025176,8.41294948,4105.0,4104.9,0.002]
[1760499025478,10.60894948,4105.0,4104.9,0.002]
[1760499025992,9.51094948,4105.0,4104.9,0.002]
[1760499026145,8.76911741,4105.0,4104.9,0.002]
[1760499027782,8.41294948,4105.0,4104.9,0.002]
[1760499028142,8.41394948,4105.0,4104.9,0.002]
[1760499029367,2.91684948,4105.0,4104.9,0.002]
[1760499029677,7.34731332,4105.0,4104.9,0.002]
[1760499029978,7.77934948,4105.0,4104.9,0.002]
[1760499030182,7.95644948,4105.0,4104.9,0.002]
[1760499030551,8.41294948,4105.0,4104.9,0.002]
[1760499034498,8.03088129,4105.0,4104.9,0.002]
[1760499034812,5.08838129,4105.0,4104.9,0.002]
[1760499034959,0.001,4105.0,4104.9,0.2501]
[1760499035156,2.094,4105.0,4104.9,0.2501]
[1760499035476,2.094,4105.0,4104.9,0.002]
[1760499035477,5.18811743,4105.0,4104.9,0.002]
[1760499035655,7.08365359,4105.0,4104.9,0.002]
[1760499035861,7.54015359,4105.0,4104.9,0.002]
[1760499036061,7.63788129,4105.0,4104.9,0.002]
[1760499037272,8.01992888,4105.0,4104.9,0.002]
[1760499037673,0.48077529,4105.0,4104.9,0.002]
[1760499037990,3.62483913,4105.0,4104.9,0.2501]
[1760499038161,5.96316502,4105.0,4104.9,0.2501]
[1760499038359,5.93870118,4105.0,4104.9,0.2501]
[1760499038810,2.86904759,4105.0,4104.9,0.2501]
[1760499039109,5.93870118,4105.0,4104.9,0.2501]
[1760499039607,3.50264759,4105.0,4104.9,0.2501]
[1760499039773,5.93870118,4105.0,4104.9,0.002]
[1760499040718,5.93870118,4105.0,4104.9,0.2501]
[1760499041283,3.50264759,4105.0,4104.9,0.2501]
[1760499041485,3.52711143,4105.0,4104.9,0.2501]
[1760499042305,3.50264759,4105.0,4104.9,0.2501]
[1760499043005,3.52711143,4105.0,4104.9,0.2501]
[1760499043207,1.01664759,4105.0,4104.9,0.2501]
[1760499043407,3.50164759,4105.0,4104.9,0.2501]
[1760499043804,3.50164759,4105.0,4104.9,0.002]
[1760499043997,5.93770118,4105.0,4104.9,0.002]
[1760499044916,7.85770118,4105.0,4104.9,0.002]
[1760499045125,8.32740118,4105.0,4104.9,0.002]
[1760499045301,10.52340118,4105.0,4104.9,0.002]
[1760499045500,10.05370118,4105.0,4104.9,0.002]
[1760499045897,7.56870118,4105.0,4104.9,0.002]
[1760499046214,10.05370118,4105.0,4104.9,0.002]
[1760499046431,6.47070118,4105.0,4104.9,0.002]
[1760499046726,8.95570118,4105.0,4104.9,0.002]
[1760499048021,5.37270118,4105.0,4104.9,0.002]
[1760499048187,7.85770118,4105.0,4104.9,0.002]
[1760499049332,5.42164759,4105.0,4104.9,0.002]
[1760499051425,8.32740118,4105.0,4104.9,0.002]
[1760499051629,7.94535359,4105.0,4104.9,0.002]
[1760499054812,8.32741141,4105.0,4104.9,0.002]
[1760499055207,9.42541141,4105.0,4104.9,0.002]
[1760499055413,10.52341141,4105.0,4104.9,0.002]
[1760499055614,10.62113171,4105.0,4104.9,0.002]
[1760499057139,9.52313171,4105.0,4104.9,0.002]
[1760499057316,8.42513171,4105.0,4104.9,0.002]
[1760499059311,7.95543171,4105.0,4104.9,0.002]
[1760499060015,8.40773171,4105.0,4104.9,0.002]
[1760499061203,8.40673171,4105.0,4104.9,0.002]
[1760499061409,3.06977228,4104.8,4104.7,1e-08]
[1760499061609,7.61983612,4104.8,4104.7,1e-08]
[1760499061837,3.06989099,4104.6,4104.5,1e-08]
[1760499062138,7.49835483,4104.6,4104.5,1e-08]
[1760499062356,3.07024717,4104.0,4103.0,0.1516]
[1760499062535,7.49871101,4104.0,4103.0,0.1516]
[1760499062740,7.92654717,4104.0,4103.0,0.1516]
[1760499063131,8.02429804,4104.0,4103.0,0.1516]